[Event "FIDE Online Olympiad Top Division 2020"]
[Site "Online"]
[Date "2020.08.24"]
[Round "?"]
[White "Muetsch, Annmarie"]
[Black "Yakubbaeva, Nilufar"]
[Result "0-1"]
[ECO "B18"]
[WhiteElo "2170"]
[BlackElo "1950"]
[Annotator "ChessBase"]
[PlyCount "110"]
[EventDate "2020.08.21"]
[TimeControl "900+5"]

1. e4 {[%emt 0:00:01]} c6 {[%emt 0:00:03]} 2. d4 {[%emt 0:00:04]} d5 {[%emt 0:00:01]} 3. Nc3 {[%emt 0:00:02]} dxe4 {[%emt 0:00:03]} 4. Nxe4 {[%emt 0:00:00]} Bf5 {[%emt 0:00:08]} 5. Ng3 {[%emt 0:00:02]} Bg6 {[%emt 0:00:08]} 6. h4 {[%emt 0:00:02]} h6 {[%emt 0:00:04]} 7. Nh3 {[%emt 0:00:02]} e6 {[%emt 0:00:21]} 8. Nf4 {[%emt 0:00:04]} Bh7 {[%emt 0:00:09]} 9. Bc4 {[%emt 0:00:15]} Nf6 {[%emt 0:00:20]} 10. Nfh5 {[%emt 0:00:05]} Nbd7 {[%emt 0:00:11]} 11. Bf4 {[%emt 0:00:19]} Nd5 {[%emt 0:00:20]} 12. Bd2 {[%emt 0:00:19]} Qb6 {[%emt 0:00:52]} 13. Bxd5 {[%emt 0:03:15]} cxd5 {[%emt 0:00:09]} 14. Qg4 {[%emt 0:00:31]} g6 {[%emt 0:00:39]} 15. Nf4 {[%emt 0:00:05]} Qxd4 {[%emt 0:00:25]} 16. Bc3 {[%emt 0:01:53]} Bb4 {[%emt 0:00:28]} 17. Nge2 {[%emt 0:00:10]} Bxc3+ {[%emt 0:00:10]} 18. bxc3 {[%emt 0:00:05]} Qe4 {[%emt 0:00:20]} 19. Qg3 {[%emt 0:02:06]} Rc8 {[%emt 0:01:23]} 20. Rb1 {[%emt 0:00:56]} Nb6 {[%emt 0:00:31]} 21. O-O {[%emt 0:01:32]} O-O {[%emt 0:01:38]} 22. Rfe1 {[%emt 0:00:28]} Qxc2 {[%emt 0:01:02]} 23. Rbc1 {[%emt 0:00:31]} Qxa2 {[%emt 0:00:32]} 24. Nd4 {[%emt 0:00:04]} Qa3 {[%emt 0:01:19]} 25. Ndxe6 {[%emt 0:01:15]} fxe6 {[%emt 0:00:13]} 26. Nxg6 {[%emt 0:00:16]} Rf6 {[%emt 0:00:56]} 27. Ne7+ {[%emt 0:00:33]} Kf7 {[%emt 0:00:15]} 28. Nxc8 {[%emt 0:00:06]} Nxc8 {[%emt 0:00:06]} 29. Ra1 {[%emt 0:00:43]} Qc5 {[%emt 0:00:33]} 30. Ra4 {[%emt 0:00:16]} Nd6 {[%emt 0:00:25]} 31. Rf4 {[%emt 0:00:16]} Nf5 {[%emt 0:00:38]} 32. Qh3 {[%emt 0:00:04]} h5 {[%emt 0:00:20]} 33. Qf3 {[%emt 0:00:08]} Bg6 {[%emt 0:00:08]} 34. Qe2 {[%emt 0:00:14]} Qc7 {[%emt 0:00:20]} 35. Ra4 {[%emt 0:00:09]} a6 {[%emt 0:00:14]} 36. Qd2 {[%emt 0:00:02]} Nd6 {[%emt 0:00:16]} 37. Rf4 {[%emt 0:00:08]} Qe7 {[%emt 0:00:06]} 38. Rxf6+ {[%emt 0:00:14]} Qxf6 {[%emt 0:00:04]} 39. Qe3 {[%emt 0:00:01]} Nc4 {[%emt 0:00:05]} 40. Qc5 {[%emt 0:00:06]} Qxh4 {[%emt 0:00:25]} 41. Qc7+ {[%emt 0:00:08]} Qe7 {[%emt 0:00:05]} 42. Qf4+ {[%emt 0:00:07]} Kg8 {[%emt 0:00:02]} 43. Qh6 {[%emt 0:00:07]} Qf7 {[%emt 0:00:09]} 44. f3 {[%emt 0:00:16]} Qf6 {[%emt 0:00:32]} 45. Rb1 {[%emt 0:00:18]} b6 {[%emt 0:00:05]} 46. Ra1 {[%emt 0:00:05]} a5 {[%emt 0:00:02]} 47. Kf2 {[%emt 0:00:12]} Kf7 {[%emt 0:00:05]} 48. Rc1 {[%emt 0:00:06]} a4 {[%emt 0:00:04]} 49. Kg1 {[%emt 0:00:07]} a3 {[%emt 0:00:03]} 50. g4 {[%emt 0:00:05]} Qe5 {[%emt 0:00:25]} 51. Kg2 {[%emt 0:00:07]} hxg4 {[%emt 0:00:07]} 52. fxg4 {[%emt 0:00:02]} Ne3+ {[%emt 0:00:04]} 53. Kh3 {[%emt 0:00:02]} a2 {[%emt 0:00:17]} 54. Re1 {[%emt 0:00:06]} Qh2+ {[%emt 0:00:06]} 55. Kxh2 {[%emt 0:00:04]} Nxg4+ {[%emt 0:00:01]} 0-1

[Event "FIDE Online Olympiad Top Division 2020"]
[Site "Online"]
[Date "2020.08.24"]
[Round "?"]
[White "Vantika, Agrawal"]
[Black "Schneider, Jana"]
[Result "1-0"]
[ECO "D30"]
[WhiteElo "2169"]
[BlackElo "2142"]
[Annotator "ChessBase"]
[PlyCount "109"]
[EventDate "2020.08.21"]
[TimeControl "900+5"]

1. d4 {[%emt 0:00:07]} d5 {[%emt 0:00:04]} 2. c4 {[%emt 0:00:07]} e6 {[%emt 0:00:02]} 3. Nf3 {[%emt 0:00:01]} a6 {[%emt 0:00:03]} 4. Bg5 {[%emt 0:01:11]} Be7 {[%emt 0:01:58]} 5. Bxe7 {[%emt 0:00:18]} Nxe7 {[%emt 0:00:02]} 6. Nbd2 {[%emt 0:00:48]} O-O {[%emt 0:00:33]} 7. g3 {[%emt 0:01:03]} Nd7 {[%emt 0:00:57]} 8. Bg2 {[%emt 0:00:07]} dxc4 {[%emt 0:00:08]} 9. Nxc4 {[%emt 0:00:23]} c5 {[%emt 0:00:11]} 10. O-O {[%emt 0:01:12]} b5 {[%emt 0:00:56]} 11. Nd6 {[%emt 0:00:47]} Rb8 {[%emt 0:00:12]} 12. dxc5 {[%emt 0:02:14]} Nxc5 {[%emt 0:00:05]} 13. Rc1 {[%emt 0:00:24]} Qb6 {[%emt 0:00:14]} 14. Qd4 {[%emt 0:01:40]} Na4 {[%emt 0:00:31]} 15. b3 {[%emt 0:00:32]} Qxd4 {[%emt 0:00:15]} 16. Nxd4 {[%emt 0:00:01]} Nb6 {[%emt 0:00:06]} 17. e4 {[%emt 0:00:58]} Rd8 {[%emt 0:01:03]} 18. e5 {[%emt 0:00:16]} Bd7 {[%emt 0:01:41]} 19. Rc7 {[%emt 0:01:49]} Nbd5 {[%emt 0:00:41]} 20. Ra7 {[%emt 0:00:48]} Ra8 {[%emt 0:00:16]} 21. Rxa8 {[%emt 0:00:33]} Rxa8 {[%emt 0:00:02]} 22. Rc1 {[%emt 0:00:09]} Nc8 {[%emt 0:00:43]} 23. Bxd5 {[%emt 0:00:38]} exd5 {[%emt 0:00:03]} 24. Rc7 {[%emt 0:00:19]} Nxd6 {[%emt 0:00:10]} 25. exd6 {[%emt 0:00:19]} Rd8 {[%emt 0:00:24]} 26. Ra7 {[%emt 0:00:04]} Kf8 {[%emt 0:02:11]} 27. Rxa6 {[%emt 0:00:03]} Rc8 {[%emt 0:00:01]} 28. Ra7 {[%emt 0:00:20]} Ke8 {[%emt 0:00:03]} 29. f3 {[%emt 0:00:03]} f6 {[%emt 0:00:07]} 30. Kf2 {[%emt 0:00:03]} Rc1 {[%emt 0:00:20]} 31. Ra8+ {[%emt 0:00:06]} Bc8 {[%emt 0:00:41]} 32. Nxb5 {[%emt 0:00:05]} Rc2+ {[%emt 0:00:02]} 33. Ke3 {[%emt 0:00:02]} Kd7 {[%emt 0:00:02]} 34. Ra7+ {[%emt 0:00:03]} Kd8 {[%emt 0:00:16]} 35. Rxg7 {[%emt 0:00:03]} Rxh2 {[%emt 0:00:07]} 36. Nd4 {[%emt 0:00:12]} Rxa2 {[%emt 0:00:38]} 37. Nc6+ {[%emt 0:00:06]} Ke8 {[%emt 0:00:01]} 38. d7+ {[%emt 0:00:05]} Bxd7 {[%emt 0:00:04]} 39. Re7+ {[%emt 0:00:03]} Kf8 {[%emt 0:00:02]} 40. Rxd7 {[%emt 0:00:01]} Ra6 {[%emt 0:00:13]} 41. Nd4 {[%emt 0:00:04]} h5 {[%emt 0:00:07]} 42. Rxd5 {[%emt 0:00:01]} Ra1 {[%emt 0:00:09]} 43. Rxh5 {[%emt 0:00:02]} Re1+ {[%emt 0:00:01]} 44. Kd3 {[%emt 0:00:05]} Rd1+ {[%emt 0:00:02]} 45. Kc4 {[%emt 0:00:01]} Rg1 {[%emt 0:00:02]} 46. g4 {[%emt 0:00:02]} Rc1+ {[%emt 0:00:03]} 47. Kd5 {[%emt 0:00:05]} Rc8 {[%emt 0:00:04]} 48. b4 {[%emt 0:00:04]} Kf7 {[%emt 0:00:05]} 49. b5 {[%emt 0:00:06]} Rd8+ {[%emt 0:00:02]} 50. Kc5 {[%emt 0:00:02]} Rc8+ {[%emt 0:00:02]} 51. Nc6 {[%emt 0:00:01]} Ra8 {[%emt 0:00:11]} 52. b6 {[%emt 0:00:03]} Ra1 {[%emt 0:00:04]} 53. b7 {[%emt 0:00:03]} Rc1+ {[%emt 0:00:01]} 54. Kb5 {[%emt 0:00:07]} Rb1+ {[%emt 0:00:16]} 55. Nb4 {[%emt 0:00:02]} 1-0

[Event "FIDE Online Olympiad Top Division 2020"]
[Site "Online"]
[Date "2020.08.22"]
[Round "?"]
[White "RovenVogel17"]
[Black "AmartuvshinGanzorig"]
[Result "1-0"]
[ECO "E94"]
[WhiteElo "2113"]
[BlackElo "2280"]
[Annotator "NA RC"]
[PlyCount "121"]
[EventDate "2020.08.21"]
[SourceTitle "playchess.com"]
[Source "ChessBase"]
[SourceQuality "1"]
[TimeControl "900+5"]

1. d4 {[%emt 0:00:06]} Nf6 {[%emt 0:00:04]} 2. Nf3 {[%emt 0:00:09]} g6 {[%emt 0:00:01]} 3. c4 {[%emt 0:00:02]} Bg7 {[%emt 0:00:01]} 4. Nc3 {[%emt 0:00:01]} O-O {[%emt 0:00:01]} 5. e4 {[%emt 0:00:01]} d6 {[%emt 0:00:02]} 6. Be2 {[%emt 0:00:01]} Na6 {[%emt 0:00:02]} 7. O-O {[%emt 0:00:01]} e5 {[%emt 0:00:01]} 8. Be3 {[%emt 0:00:30]} Ng4 {[%emt 0:00:13]} 9. Bg5 {[%emt 0:00:04]} Qe8 {[%emt 0:00:01]} 10. h3 {[%emt 0:01:04]} exd4 {[%emt 0:00:53]} 11. Nd5 {[%emt 0:00:14]} f6 {[%emt 0:00:03]} 12. Bc1 {[%emt 0:02:23]} Ne5 {[%emt 0:00:04]} 13. Nxd4 {[%emt 0:00:06]} c6 {[%emt 0:00:17]} 14. Nc3 {[%emt 0:00:12]} Qf7 {[%emt 0:00:06]} 15. b3 {[%emt 0:00:11]} Nc5 {[%emt 0:01:19]} 16. f4 {[%emt 0:00:20]} Ned7 {[%emt 0:00:29]} 17. b4 {[%emt 0:00:55]} Na6 {[%emt 0:01:14]} 18. a3 {[%emt 0:00:48]} Nb6 {[%emt 0:01:05]} 19. b5 {[%emt 0:03:05]} Nb8 {[%emt 0:00:42]} 20. f5 {[%emt 0:00:40]} Nxc4 {[%emt 0:00:55]} 21. Bf4 {[%emt 0:01:42]} Ne5 {[%emt 0:01:41]} 22. Qc2 {[%emt 0:00:27]} Kh8 {[%emt 0:01:16]} 23. Rad1 {[%emt 0:00:04]} Re8 {[%emt 0:00:24]} 24. Nf3 {[%emt 0:00:23]} g5 {[%emt 0:01:05]} 25. Nxe5 {[%emt 0:00:24]} dxe5 {[%emt 0:00:04]} 26. Be3 {[%emt 0:00:01]} Bf8 {[%emt 0:00:25]} 27. h4 {[%emt 0:00:07]} gxh4 {[%emt 0:00:24]} 28. Rf3 {[%emt 0:00:03]} Nd7 {[%emt 0:00:15]} 29. Rh3 {[%emt 0:00:36]} Bc5 {[%emt 0:00:18]} 30. Qc1 {[%emt 0:00:02]} Qg7 {[%emt 0:00:08]} 31. Bc4 {[%emt 0:00:29]} Bxe3+ {[%emt 0:01:00]} 32. Qxe3 {[%emt 0:00:03]} Nb6 {[%emt 0:00:02]} 33. Bb3 {[%emt 0:00:03]} Bd7 {[%emt 0:00:16]} 34. a4 {[%emt 0:01:22]} cxb5 {[%emt 0:00:20]} 35. axb5 {[%emt 0:00:00]} Rac8 {[%emt 0:00:01]} 36. Rxh4 {[%emt 0:00:13]} Nc4 {[%emt 0:01:00]} 37. Qh3 {[%emt 0:00:01]} a6 {[%emt 0:01:36]} 38. Nd5 {[%emt 0:00:04]} Bxb5 {[%emt 0:00:16]} 39. Rd3 {[%emt 0:00:19]} Rc6 {[%emt 0:00:06]} 40. Rg3 {[%emt 0:00:06]} Qf7 {[%emt 0:00:00]} 41. Rh6 {[%emt 0:00:10]} Rd6 {[%emt 0:00:03]} 42. Qh4 {[%emt 0:00:13]} Rxd5 {[%emt 0:00:11]} 43. Rxf6 {[%emt 0:00:05]} Rd1+ {[%emt 0:00:03]} 44. Bxd1 {[%emt 0:00:03]} Qd7 {[%emt 0:00:03]} 45. Bf3 {[%emt 0:00:06]} Nd2 {[%emt 0:00:01]} 46. Qh6 {[%emt 0:00:07]} Qe7 {[%emt 0:00:08]} 47. Rd6 {[%emt 0:00:20]} Nxf3+ {[%emt 0:00:04]} 48. Rxf3 {[%emt 0:00:06]} Rg8 {[%emt 0:00:02]} 49. Re6 {[%emt 0:00:14]} Qg7 {[%emt 0:00:02]} 50. Qxg7+ {[%emt 0:00:05]} Rxg7 {[%emt 0:00:04]} 51. Rxe5 {[%emt 0:00:02]} Bc6 {[%emt 0:00:01]} 52. f6 {[%emt 0:00:07]} Rf7 {[%emt 0:00:02]} 53. Re6 {[%emt 0:00:02]} Kg8 {[%emt 0:00:01]} 54. Rg3+ {[%emt 0:00:03]} Kf8 {[%emt 0:00:02]} 55. e5 {[%emt 0:00:01]} Rd7 {[%emt 0:00:02]} 56. Rc3 {[%emt 0:00:11]} Kf7 {[%emt 0:00:04]} 57. Rexc6 {[%emt 0:00:06]} bxc6 {[%emt 0:00:02]} 58. Rxc6 {[%emt 0:00:00]} Rd5 {[%emt 0:00:01]} 59. Rc7+ {[%emt 0:00:03]} Kf8 {[%emt 0:00:19]} 60. e6 {[%emt 0:00:01]} Rd1+ {[%emt 0:00:11]} 61. Kh2 {[%emt 0:00:03]} 1-0

[Event "FIDE Online Olympiad Top Division 2020"]
[Site "Online"]
[Date "2020.08.24"]
[Round "?"]
[White "Charinda, Kudzanayi"]
[Black "Melamed, Tatjana"]
[Result "0-1"]
[ECO "B48"]
[WhiteElo "1708"]
[BlackElo "2347"]
[Annotator "ChessBase"]
[PlyCount "74"]
[EventDate "2020.08.21"]
[TimeControl "900+5"]

1. e4 {[%emt 0:00:09]} c5 {[%emt 0:00:02]} 2. Nf3 {[%emt 0:00:04]} e6 {[%emt 0:00:02]} 3. d4 {[%emt 0:00:05]} cxd4 {[%emt 0:00:01]} 4. Nxd4 {[%emt 0:00:04]} Nc6 {[%emt 0:00:02]} 5. Nc3 {[%emt 0:00:10]} Qc7 {[%emt 0:00:04]} 6. Be3 {[%emt 0:00:53]} a6 {[%emt 0:00:11]} 7. Qd2 {[%emt 0:00:49]} Nf6 {[%emt 0:00:20]} 8. f3 {[%emt 0:00:17]} Ne5 {[%emt 0:00:38]} 9. Be2 {[%emt 0:02:05]} b5 {[%emt 0:00:38]} 10. Nb3 {[%emt 0:01:58]} Bb7 {[%emt 0:01:10]} 11. g4 {[%emt 0:01:29]} h6 {[%emt 0:00:53]} 12. O-O-O {[%emt 0:00:57]} Rc8 {[%emt 0:02:13]} 13. Kb1 {[%emt 0:00:13]} b4 {[%emt 0:05:05]} 14. Na4 {[%emt 0:00:38]} Nxe4 {[%emt 0:00:05]} 15. fxe4 {[%emt 0:00:49]} Bxe4 {[%emt 0:00:04]} 16. Nac5 {[%emt 0:01:13]} Bxh1 {[%emt 0:00:31]} 17. Rxh1 {[%emt 0:00:11]} Be7 {[%emt 0:00:45]} 18. Rd1 {[%emt 0:01:18]} O-O {[%emt 0:00:29]} 19. Ne4 {[%emt 0:01:38]} d5 {[%emt 0:00:08]} 20. Ng3 {[%emt 0:00:17]} Nc4 {[%emt 0:00:09]} 21. Bxc4 {[%emt 0:00:18]} dxc4 {[%emt 0:00:02]} 22. Nd4 {[%emt 0:00:14]} c3 {[%emt 0:00:08]} 23. Qf2 {[%emt 0:00:22]} Rfd8 {[%emt 0:00:15]} 24. Rf1 {[%emt 0:00:12]} Bg5 {[%emt 0:00:28]} 25. Bxg5 {[%emt 0:00:14]} hxg5 {[%emt 0:00:02]} 26. Nh5 {[%emt 0:00:08]} Rd7 {[%emt 0:00:23]} 27. Nf6+ {[%emt 0:00:15]} gxf6 {[%emt 0:00:23]} 28. Qxf6 {[%emt 0:00:06]} Qd6 {[%emt 0:00:42]} 29. Qxg5+ {[%emt 0:00:05]} Kf8 {[%emt 0:00:03]} 30. Qh6+ {[%emt 0:00:03]} Ke8 {[%emt 0:00:20]} 31. Qh8+ {[%emt 0:00:06]} Qf8 {[%emt 0:00:01]} 32. Qf6 {[%emt 0:00:03]} Rcd8 {[%emt 0:00:12]} 33. a3 {[%emt 0:00:06]} Rxd4 {[%emt 0:00:05]} 34. axb4 {[%emt 0:00:06]} Rd1+ {[%emt 0:00:02]} 35. Rxd1 {[%emt 0:00:03]} Rxd1+ {[%emt 0:00:02]} 36. Ka2 {[%emt 0:00:05]} Qxb4 {[%emt 0:00:09]} 37. Qh8+ {[%emt 0:00:04]} Kd7 {[%emt 0:00:02]} 0-1

[Event "FIDE Online Olympiad Top Division 2020"]
[Site "Online"]
[Date "2020.08.24"]
[Round "?"]
[White "Mwadzura, Roy"]
[Black "Fridman, Daniel"]
[Result "0-1"]
[ECO "B12"]
[WhiteElo "1652"]
[BlackElo "2550"]
[Annotator "ChessBase"]
[PlyCount "80"]
[EventDate "2020.08.21"]
[TimeControl "900+5"]

1. e4 {[%emt 0:00:06]} c6 {[%emt 0:00:03]} 2. d4 {[%emt 0:00:03]} d5 {[%emt 0:00:02]} 3. e5 {[%emt 0:00:02]} c5 {[%emt 0:00:01]} 4. dxc5 {[%emt 0:00:07]} Nc6 {[%emt 0:00:02]} 5. Nf3 {[%emt 0:00:08]} Bg4 {[%emt 0:00:03]} 6. Be2 {[%emt 0:01:27]} e6 {[%emt 0:00:04]} 7. Be3 {[%emt 0:00:04]} Nge7 {[%emt 0:00:03]} 8. Nd4 {[%emt 0:00:45]} Bxe2 {[%emt 0:00:05]} 9. Qxe2 {[%emt 0:00:03]} Nxe5 {[%emt 0:00:42]} 10. Nd2 {[%emt 0:00:21]} N7c6 {[%emt 0:00:24]} 11. c3 {[%emt 0:00:16]} Be7 {[%emt 0:00:17]} 12. O-O {[%emt 0:00:03]} O-O {[%emt 0:00:02]} 13. b4 {[%emt 0:00:06]} Bf6 {[%emt 0:00:18]} 14. f4 {[%emt 0:00:31]} Nxd4 {[%emt 0:00:27]} 15. Bxd4 {[%emt 0:00:27]} Nc6 {[%emt 0:00:05]} 16. Nf3 {[%emt 0:00:17]} b6 {[%emt 0:00:27]} 17. Bxf6 {[%emt 0:00:37]} Qxf6 {[%emt 0:00:03]} 18. b5 {[%emt 0:00:06]} Ne7 {[%emt 0:00:20]} 19. Ne5 {[%emt 0:00:32]} bxc5 {[%emt 0:00:13]} 20. Nd7 {[%emt 0:00:26]} Qxc3 {[%emt 0:00:02]} 21. Nxf8 {[%emt 0:00:05]} Rxf8 {[%emt 0:00:03]} 22. Rac1 {[%emt 0:00:04]} Qb4 {[%emt 0:00:57]} 23. Qf2 {[%emt 0:00:40]} Rc8 {[%emt 0:00:10]} 24. Rb1 {[%emt 0:00:05]} Qa5 {[%emt 0:00:08]} 25. Rfc1 {[%emt 0:00:13]} Qb6 {[%emt 0:00:59]} 26. a4 {[%emt 0:00:21]} h5 {[%emt 0:02:18]} 27. a5 {[%emt 0:00:19]} Qxa5 {[%emt 0:00:04]} 28. Rxc5 {[%emt 0:00:04]} Rxc5 {[%emt 0:00:02]} 29. Qxc5 {[%emt 0:00:02]} Nf5 {[%emt 0:00:04]} 30. Qc8+ {[%emt 0:00:48]} Kh7 {[%emt 0:00:02]} 31. Qc2 {[%emt 0:00:01]} g6 {[%emt 0:00:26]} 32. Qf2 {[%emt 0:00:07]} d4 {[%emt 0:00:11]} 33. g3 {[%emt 0:00:15]} Qc3 {[%emt 0:00:45]} 34. Qe1 {[%emt 0:00:22]} Qd3 {[%emt 0:00:23]} 35. Qf1 {[%emt 0:00:41]} Qe3+ {[%emt 0:00:22]} 36. Qf2 {[%emt 0:00:04]} Qa3 {[%emt 0:01:23]} 37. Qe2 {[%emt 0:02:18]} Ne3 {[%emt 0:00:25]} 38. b6 {[%emt 0:02:04]} axb6 {[%emt 0:00:08]} 39. Rxb6 {[%emt 0:00:02]} Qc1+ {[%emt 0:00:34]} 40. Kf2 {[%emt 0:00:06]} Qh1 {[%emt 0:00:07]} 0-1